[Event "Titled Tuesday Blitz May 9 Early 2023"]
[White "Dahlgren, James Allen"]
[Black "Llanos, Guillermo"]
[WhiteFideId "22256873"]
[BlackFideId "100358"]
[WhiteElo "2206"]
[BlackElo "2225"]
[Result "0-1"]
[Round "11"]
[TimeControl "180+2"]
[Date "2023.05.09"]
[WhiteClock "0:00:11"]
[BlackClock "0:00:47"]

1. f4 {[%clk 0:03:00]}  e5 {[%clk 0:02:53]} 2. Nf3 {[%clk 0:03:00]}  exf4 {[%clk 0:02:53]} 3. d4 {[%clk 0:03:00]}  g5 {[%clk 0:02:51]} 4. e4 {[%clk 0:02:58]}  fxe3 {[%clk 0:02:43]} 5. Bxe3 {[%clk 0:02:57]}  g4 {[%clk 0:02:40]} 6. Ne5 {[%clk 0:02:57]}  d6 {[%clk 0:02:30]} 7. Nxg4 {[%clk 0:02:55]}  Qh4+ {[%clk 0:02:29]} 8. Nf2 {[%clk 0:02:55]}  Qe7 {[%clk 0:02:17]} 9. Qd3 {[%clk 0:02:40]}  Bh6 {[%clk 0:02:15]} 10. Kd2 {[%clk 0:02:39]}  Bf5 {[%clk 0:02:09]} 11. Qe2 {[%clk 0:02:10]}  Qxe3+ {[%clk 0:02:07]} 12. Qxe3+ {[%clk 0:02:11]}  Bxe3+ {[%clk 0:02:07]} 13. Kxe3 {[%clk 0:02:11]}  Bxc2 {[%clk 0:02:07]} 14. Nc3 {[%clk 0:02:11]}  c6 {[%clk 0:02:05]} 15. Nd3 {[%clk 0:02:05]}  Ne7 {[%clk 0:01:56]} 16. Ne4 {[%clk 0:01:58]}  Nf5+ {[%clk 0:01:52]} 17. Kd2 {[%clk 0:01:58]}  Bxd3 {[%clk 0:01:50]} 18. Bxd3 {[%clk 0:01:58]}  d5 {[%clk 0:01:36]} 19. Nf6+ {[%clk 0:01:58]}  Ke7 {[%clk 0:01:36]} 20. Nxh7 {[%clk 0:01:41]}  Nxd4 {[%clk 0:01:34]} 21. Rae1+ {[%clk 0:01:38]}  Ne6 {[%clk 0:01:32]} 22. Rhf1 {[%clk 0:01:29]}  Nd7 {[%clk 0:01:30]} 23. Ng5 {[%clk 0:01:20]}  Raf8 {[%clk 0:01:25]} 24. h3 {[%clk 0:01:07]}  Rh5 {[%clk 0:01:20]} 25. Nxe6 {[%clk 0:00:43]}  fxe6 {[%clk 0:01:19]} 26. Rxf8 {[%clk 0:00:32]}  Nxf8 {[%clk 0:01:19]} 27. Be2 {[%clk 0:00:32]}  Re5 {[%clk 0:01:14]} 28. Bg4 {[%clk 0:00:29]}  Rxe1 {[%clk 0:01:13]} 29. Kxe1 {[%clk 0:00:30]}  Ng6 {[%clk 0:01:09]} 30. g3 {[%clk 0:00:30]}  c5 {[%clk 0:01:05]} 31. h4 {[%clk 0:00:29]}  Kf6 {[%clk 0:01:02]} 32. Kf2 {[%clk 0:00:28]}  Ne5 {[%clk 0:01:01]} 33. Be2 {[%clk 0:00:28]}  c4 {[%clk 0:01:01]} 34. Ke3 {[%clk 0:00:26]}  b5 {[%clk 0:01:00]} 35. Kd4 {[%clk 0:00:24]}  a6 {[%clk 0:00:52]} 36. Kc5 {[%clk 0:00:21]}  Nd3+ {[%clk 0:00:50]} 37. Kb6 {[%clk 0:00:17]}  Nxb2 {[%clk 0:00:49]} 38. Kxa6 {[%clk 0:00:11]}  c3 {[%clk 0:00:47]} 0-1


[Site "https://www.chess.com"]

[Event "Titled Tuesday Blitz May 9 Early 2023"]
[White "Hercegovac, Neven"]
[Black "Ismayilova, Khanim"]
[WhiteFideId "2839135"]
[BlackFideId "13429019"]
[WhiteElo "2075"]
[BlackElo "1633"]
[Result "1-0"]
[Round "11"]
[TimeControl "180+2"]
[Date "2023.05.09"]
[WhiteClock "0:00:30"]
[BlackClock "0:00:30"]

1. Nf3 {[%clk 0:02:47]}  Nf6 {[%clk 0:02:59]} 2. g3 {[%clk 0:02:47]}  d5 {[%clk 0:02:58]} 3. Bg2 {[%clk 0:02:37]}  c5 {[%clk 0:02:58]} 4. O-O {[%clk 0:02:00]}  e6 {[%clk 0:02:58]} 5. d4 {[%clk 0:01:55]}  Nc6 {[%clk 0:02:54]} 6. c4 {[%clk 0:01:52]}  Be7 {[%clk 0:02:51]} 7. dxc5 {[%clk 0:01:48]}  Bxc5 {[%clk 0:02:51]} 8. a3 {[%clk 0:01:46]}  O-O {[%clk 0:02:49]} 9. b4 {[%clk 0:01:43]}  Be7 {[%clk 0:02:48]} 10. Nbd2 {[%clk 0:01:40]}  dxc4 {[%clk 0:02:22]} 11. Nxc4 {[%clk 0:01:38]}  Qxd1 {[%clk 0:02:22]} 12. Rxd1 {[%clk 0:01:37]}  Nd5 {[%clk 0:02:21]} 13. Bb2 {[%clk 0:01:35]}  Bf6 {[%clk 0:02:21]} 14. Bxf6 {[%clk 0:01:35]}  Nxf6 {[%clk 0:02:21]} 15. Nfe5 {[%clk 0:01:32]}  Nxe5 {[%clk 0:02:19]} 16. Nxe5 {[%clk 0:01:33]}  Rb8 {[%clk 0:02:18]} 17. Rac1 {[%clk 0:01:30]}  b6 {[%clk 0:02:17]} 18. Rc7 {[%clk 0:01:26]}  Ba6 {[%clk 0:02:14]} 19. Bf3 {[%clk 0:01:08]}  Bb5 {[%clk 0:01:40]} 20. Rxa7 {[%clk 0:01:05]}  h6 {[%clk 0:01:35]} 21. a4 {[%clk 0:01:05]}  Be8 {[%clk 0:01:29]} 22. a5 {[%clk 0:00:56]}  bxa5 {[%clk 0:01:27]} 23. bxa5 {[%clk 0:00:57]}  Rb5 {[%clk 0:01:20]} 24. Nc6 {[%clk 0:00:47]}  Bxc6 {[%clk 0:01:16]} 25. Bxc6 {[%clk 0:00:48]}  Rc5 {[%clk 0:01:17]} 26. Bf3 {[%clk 0:00:46]}  Nd5 {[%clk 0:01:16]} 27. a6 {[%clk 0:00:41]}  Ra5 {[%clk 0:01:12]} 28. e3 {[%clk 0:00:25]}  Rb8 {[%clk 0:00:45]} 29. Rd2 {[%clk 0:00:22]}  Rd8 {[%clk 0:00:33]} 30. e4 {[%clk 0:00:18]}  Ra1+ {[%clk 0:00:29]} 31. Bd1 {[%clk 0:00:18]}  Rb8 {[%clk 0:00:20]} 32. exd5 {[%clk 0:00:17]}  Rbb1 {[%clk 0:00:20]} 33. dxe6 {[%clk 0:00:15]}  Rxd1+ {[%clk 0:00:20]} 34. Rxd1 {[%clk 0:00:16]}  Rxd1+ {[%clk 0:00:21]} 35. Kg2 {[%clk 0:00:17]}  fxe6 {[%clk 0:00:21]} 36. Re7 {[%clk 0:00:16]}  Ra1 {[%clk 0:00:20]} 37. Rxe6 {[%clk 0:00:17]}  Kf7 {[%clk 0:00:21]} 38. Rb6 {[%clk 0:00:17]}  Kg8 {[%clk 0:00:20]} 39. h4 {[%clk 0:00:17]}  Kh7 {[%clk 0:00:20]} 40. h5 {[%clk 0:00:17]}  Ra2 {[%clk 0:00:20]} 41. Kf3 {[%clk 0:00:17]}  Ra4 {[%clk 0:00:20]} 42. Ke3 {[%clk 0:00:17]}  Kg8 {[%clk 0:00:20]} 43. f3 {[%clk 0:00:17]}  Kf7 {[%clk 0:00:19]} 44. Rb7+ {[%clk 0:00:16]}  Kf6 {[%clk 0:00:20]} 45. a7 {[%clk 0:00:17]}  Ra5 {[%clk 0:00:19]} 46. g4 {[%clk 0:00:17]}  Ra4 {[%clk 0:00:17]} 47. Kd3 {[%clk 0:00:17]}  Ra1 {[%clk 0:00:16]} 48. Kc4 {[%clk 0:00:17]}  Rc1+ {[%clk 0:00:14]} 49. Kb5 {[%clk 0:00:16]}  Rb1+ {[%clk 0:00:12]} 50. Kc6 {[%clk 0:00:16]}  Rc1+ {[%clk 0:00:12]} 51. Kd7 {[%clk 0:00:16]}  Ra1 {[%clk 0:00:11]} 52. Kc8 {[%clk 0:00:15]}  Kg5 {[%clk 0:00:12]} 53. Rxg7+ {[%clk 0:00:14]}  Kf4 {[%clk 0:00:12]} 54. Rf7+ {[%clk 0:00:14]}  Kg3 {[%clk 0:00:11]} 55. Kb8 {[%clk 0:00:14]}  Rb1+ {[%clk 0:00:11]} 56. Rb7 {[%clk 0:00:14]}  Ra1 {[%clk 0:00:12]} 57. a8=Q {[%clk 0:00:13]}  Rxa8+ {[%clk 0:00:12]} 58. Kxa8 {[%clk 0:00:14]}  Kxf3 {[%clk 0:00:13]} 59. Rg7 {[%clk 0:00:14]}  Kf4 {[%clk 0:00:13]} 60. Rg6 {[%clk 0:00:15]}  Ke5 {[%clk 0:00:13]} 61. Kb8 {[%clk 0:00:14]}  Kf4 {[%clk 0:00:13]} 62. Kc8 {[%clk 0:00:15]}  Kg3 {[%clk 0:00:13]} 63. Kd8 {[%clk 0:00:16]}  Kh4 {[%clk 0:00:14]} 64. Ke8 {[%clk 0:00:17]}  Kh3 {[%clk 0:00:14]} 65. Kf8 {[%clk 0:00:18]}  Kg3 {[%clk 0:00:15]} 66. Kg7 {[%clk 0:00:19]}  Kg2 {[%clk 0:00:16]} 67. Kxh6 {[%clk 0:00:20]}  Kg3 {[%clk 0:00:16]} 68. Kg7 {[%clk 0:00:20]}  Kh4 {[%clk 0:00:17]} 69. h6 {[%clk 0:00:21]}  Kg3 {[%clk 0:00:18]} 70. h7 {[%clk 0:00:22]}  Kg2 {[%clk 0:00:19]} 71. h8=Q {[%clk 0:00:23]}  Kg3 {[%clk 0:00:20]} 72. Kg8 {[%clk 0:00:23]}  Kf3 {[%clk 0:00:21]} 73. Rg7 {[%clk 0:00:23]}  Kg3 {[%clk 0:00:22]} 74. Rh7 {[%clk 0:00:24]}  Kf3 {[%clk 0:00:23]} 75. Kf8 {[%clk 0:00:25]}  Kf4 {[%clk 0:00:23]} 76. g5 {[%clk 0:00:25]}  Kg3 {[%clk 0:00:24]} 77. g6 {[%clk 0:00:26]}  Kf3 {[%clk 0:00:25]} 78. g7 {[%clk 0:00:27]}  Kf4 {[%clk 0:00:26]} 79. g8=R {[%clk 0:00:27]}  Ke4 {[%clk 0:00:27]} 80. Rg6 {[%clk 0:00:27]}  Ke3 {[%clk 0:00:28]} 81. Rh5 {[%clk 0:00:27]}  Kf3 {[%clk 0:00:28]} 82. Qf6+ {[%clk 0:00:26]}  Ke3 {[%clk 0:00:28]} 83. Re5+ {[%clk 0:00:27]}  Kd4 {[%clk 0:00:28]} 84. Qd6+ {[%clk 0:00:28]}  Kc4 {[%clk 0:00:28]} 85. Rc5+ {[%clk 0:00:29]}  Kb4 {[%clk 0:00:29]} 86. Qb6+ {[%clk 0:00:30]}  Ka4 {[%clk 0:00:30]} 87. Ra5# {[%clk 0:00:30]} 1-0


[Site "https://www.chess.com"]

[Event "Titled Tuesday Blitz May 9 Early 2023"]
[White "Sanchez, Robert"]
[Black "Lakshmi C"]
[WhiteFideId "2034360"]
[BlackFideId "25035347"]
[WhiteElo "1871"]
[BlackElo "1942"]
[Result "0-1"]
[Round "11"]
[TimeControl "180+2"]
[Date "2023.05.09"]
[WhiteClock "0:01:07"]
[BlackClock "0:00:01"]

1. Nf3 {[%clk 0:03:00]}  Nf6 {[%clk 0:02:54]} 2. e3 {[%clk 0:03:01]}  e6 {[%clk 0:02:54]} 3. c4 {[%clk 0:03:02]}  d6 {[%clk 0:02:55]} 4. b3 {[%clk 0:03:02]}  c5 {[%clk 0:02:55]} 5. Bb2 {[%clk 0:03:03]}  Nc6 {[%clk 0:02:55]} 6. d4 {[%clk 0:03:03]}  Qc7 {[%clk 0:02:54]} 7. Nc3 {[%clk 0:03:04]}  a6 {[%clk 0:02:52]} 8. Bd3 {[%clk 0:03:04]}  Nb4 {[%clk 0:02:49]} 9. Bb1 {[%clk 0:03:03]}  Bd7 {[%clk 0:02:46]} 10. a3 {[%clk 0:03:03]}  Nc6 {[%clk 0:02:45]} 11. O-O {[%clk 0:03:04]}  e5 {[%clk 0:02:42]} 12. dxc5 {[%clk 0:02:58]}  dxc5 {[%clk 0:02:42]} 13. Nd5 {[%clk 0:02:58]}  Qb8 {[%clk 0:02:28]} 14. Nb6 {[%clk 0:02:50]}  Ra7 {[%clk 0:02:28]} 15. Nxd7 {[%clk 0:02:43]}  Nxd7 {[%clk 0:02:25]} 16. Be4 {[%clk 0:02:42]}  Nd8 {[%clk 0:02:05]} 17. Bf5 {[%clk 0:02:21]}  b6 {[%clk 0:02:00]} 18. Qc2 {[%clk 0:02:15]}  Bd6 {[%clk 0:01:48]} 19. Rfd1 {[%clk 0:02:13]}  g6 {[%clk 0:01:32]} 20. Bxd7+ {[%clk 0:02:05]}  Rxd7 {[%clk 0:01:31]} 21. Qe4 {[%clk 0:02:06]}  f6 {[%clk 0:01:27]} 22. h4 {[%clk 0:01:56]}  O-O {[%clk 0:01:23]} 23. h5 {[%clk 0:01:56]}  Kg7 {[%clk 0:01:13]} 24. hxg6 {[%clk 0:01:52]}  hxg6 {[%clk 0:01:13]} 25. Qg4 {[%clk 0:01:50]}  f5 {[%clk 0:01:08]} 26. Qg5 {[%clk 0:01:44]}  Nf7 {[%clk 0:01:06]} 27. Qg3 {[%clk 0:01:35]}  Kh7 {[%clk 0:00:17]} 28. Rd5 {[%clk 0:01:27]}  Re7 {[%clk 0:00:15]} 29. Rad1 {[%clk 0:01:23]}  Bc7 {[%clk 0:00:12]} 30. Rd7 {[%clk 0:01:19]}  Rxd7 {[%clk 0:00:08]} 31. Rxd7 {[%clk 0:01:19]}  Qc8 {[%clk 0:00:01]} 32. Ng5+ {[%clk 0:01:07]} 0-1


[Site "https://www.chess.com"]

[Event "Titled Tuesday Blitz May 9 Early 2023"]
[White "Larina, Maria"]
[Black "Hartikainen, Jarmo"]
[WhiteFideId "24113182"]
[BlackFideId "503134"]
[WhiteElo "1848"]
[BlackElo "2083"]
[Result "1-0"]
[Round "11"]
[TimeControl "180+2"]
[Date "2023.05.09"]
[WhiteClock "0:00:10"]
[BlackClock "0:00:13"]

1. e4 {[%clk 0:03:00]}  c5 {[%clk 0:02:59]} 2. Nc3 {[%clk 0:02:59]}  Nc6 {[%clk 0:02:59]} 3. g3 {[%clk 0:02:59]}  g6 {[%clk 0:02:59]} 4. Bg2 {[%clk 0:03:00]}  Bg7 {[%clk 0:02:59]} 5. d3 {[%clk 0:03:01]}  e6 {[%clk 0:02:57]} 6. Be3 {[%clk 0:03:01]}  b6 {[%clk 0:02:55]} 7. Qd2 {[%clk 0:03:00]}  h6 {[%clk 0:02:54]} 8. h4 {[%clk 0:02:57]}  Nge7 {[%clk 0:02:54]} 9. h5 {[%clk 0:02:52]}  d5 {[%clk 0:02:38]} 10. exd5 {[%clk 0:02:33]}  exd5 {[%clk 0:02:38]} 11. hxg6 {[%clk 0:02:01]}  d4 {[%clk 0:02:33]} 12. gxf7+ {[%clk 0:02:01]}  Kxf7 {[%clk 0:02:32]} 13. O-O-O {[%clk 0:01:41]}  dxc3 {[%clk 0:01:50]} 14. bxc3 {[%clk 0:01:42]}  Qd6 {[%clk 0:01:49]} 15. Bf4 {[%clk 0:01:35]}  Qf6 {[%clk 0:01:48]} 16. Ne2 {[%clk 0:01:26]}  Bb7 {[%clk 0:01:44]} 17. g4 {[%clk 0:01:10]}  Qe6 {[%clk 0:01:12]} 18. Kb1 {[%clk 0:00:41]}  Ng6 {[%clk 0:01:03]} 19. Bxh6 {[%clk 0:00:26]}  Bxh6 {[%clk 0:00:53]} 20. Rxh6 {[%clk 0:00:27]}  Rxh6 {[%clk 0:00:52]} 21. Qxh6 {[%clk 0:00:28]}  Rh8 {[%clk 0:00:46]} 22. Qd2 {[%clk 0:00:20]}  Na5 {[%clk 0:00:46]} 23. Bxb7 {[%clk 0:00:18]}  Nxb7 {[%clk 0:00:47]} 24. Nf4 {[%clk 0:00:18]}  Nxf4 {[%clk 0:00:38]} 25. Qxf4+ {[%clk 0:00:18]}  Ke7 {[%clk 0:00:38]} 26. Qc7+ {[%clk 0:00:18]}  Kf6 {[%clk 0:00:33]} 27. Qxb7 {[%clk 0:00:17]}  Rh2 {[%clk 0:00:34]} 28. Qf3+ {[%clk 0:00:17]}  Kg7 {[%clk 0:00:29]} 29. Qg3 {[%clk 0:00:15]}  Qh6 {[%clk 0:00:25]} 30. Qc7+ {[%clk 0:00:12]}  Kg8 {[%clk 0:00:25]} 31. Qb8+ {[%clk 0:00:10]}  Kg7 {[%clk 0:00:24]} 32. Qxa7+ {[%clk 0:00:10]}  Kg8 {[%clk 0:00:23]} 33. Qb8+ {[%clk 0:00:10]}  Kg7 {[%clk 0:00:24]} 34. Qc7+ {[%clk 0:00:09]}  Kg8 {[%clk 0:00:24]} 35. Re1 {[%clk 0:00:08]}  Rh1 {[%clk 0:00:23]} 36. Qd8+ {[%clk 0:00:08]}  Kg7 {[%clk 0:00:20]} 37. Qe7+ {[%clk 0:00:08]}  Kg8 {[%clk 0:00:20]} 38. Kb2 {[%clk 0:00:07]}  Rxe1 {[%clk 0:00:19]} 39. Qxe1 {[%clk 0:00:07]}  Qf4 {[%clk 0:00:18]} 40. Qe6+ {[%clk 0:00:06]}  Kg7 {[%clk 0:00:18]} 41. Qf5 {[%clk 0:00:06]}  Qd6 {[%clk 0:00:16]} 42. f4 {[%clk 0:00:05]}  b5 {[%clk 0:00:16]} 43. Qe5+ {[%clk 0:00:05]}  Qxe5 {[%clk 0:00:16]} 44. fxe5 {[%clk 0:00:06]}  Kf7 {[%clk 0:00:16]} 45. d4 {[%clk 0:00:07]}  Ke6 {[%clk 0:00:16]} 46. dxc5 {[%clk 0:00:06]}  Kxe5 {[%clk 0:00:16]} 47. g5 {[%clk 0:00:07]}  Kf5 {[%clk 0:00:16]} 48. c6 {[%clk 0:00:07]}  Ke6 {[%clk 0:00:16]} 49. c7 {[%clk 0:00:07]}  Kd7 {[%clk 0:00:16]} 50. g6 {[%clk 0:00:08]}  Kxc7 {[%clk 0:00:17]} 51. g7 {[%clk 0:00:09]}  b4 {[%clk 0:00:18]} 52. g8=Q {[%clk 0:00:09]}  bxc3+ {[%clk 0:00:18]} 53. Kxc3 {[%clk 0:00:10]}  Kd6 {[%clk 0:00:19]} 54. Qg5 {[%clk 0:00:10]}  Kc6 {[%clk 0:00:13]} 55. a4 {[%clk 0:00:10]} 1-0


[Site "https://www.chess.com"]